bitfinex-derivatives/quotes_BNBF0:USTF0_20250521
["timestamp","ask_amount","ask_price","bid_price","bid_amount"]
[1747789760992,0.974,652.22,651.56,0.58195156]
[1747789761196,0.974,652.22,651.57,0.58195156]
[1747789761394,0.974,652.22,651.58,0.58195156]
[1747789761591,0.974,652.22,651.59,0.58195156]
[1747789761791,0.974,652.22,651.6,1.36516518]
[1747789761995,0.974,652.22,651.61,0.58195156]
[1747789762198,0.974,652.22,651.62,1.36516518]
[1747789762500,0.974,652.22,651.63,1.36516518]
[1747789762697,0.974,652.22,651.64,0.58195156]
[1747789762898,0.974,652.22,651.65,1.36516518]
[1747789763098,0.974,652.22,651.66,0.58195156]
[1747789763299,0.974,652.22,651.67,1.36516518]
[1747789763500,0.974,652.22,651.68,1.36516518]
[1747789763700,0.974,652.22,651.69,0.58195156]
[1747789763899,0.974,652.22,651.7,0.58195156]
[1747789764100,0.974,652.22,651.71,0.58195156]
[1747789764300,0.974,652.22,651.72,0.58195156]
[1747789764501,0.974,652.22,651.73,0.58195156]
[1747789764800,0.974,652.22,651.74,0.58195156]
[1747789765001,2.29594406,652.4,651.75,0.58195156]
[1747789765200,2.29594406,652.4,651.51,0.751]
[1747789765399,2.29594406,652.4,651.52,1.36546825]
[1747789765595,2.29594406,652.4,651.53,0.58196529]
[1747789765794,2.29594406,652.4,651.54,1.36546825]
[1747789765999,2.29594406,652.4,651.55,0.58196529]
[1747789766300,2.29594406,652.4,651.56,1.36546825]
[1747789766601,2.29594406,652.4,651.57,0.58196529]
[1747789766796,2.29594406,652.4,651.58,0.58196529]
[1747789766998,2.29594406,652.46,651.59,0.58196529]
[1747789767198,2.29594406,652.46,651.6,1.36546825]
[1747789767401,0.832,652.45,651.61,1.36546825]
[1747789767701,0.832,652.45,651.62,0.58196529]
[1747789767900,0.832,652.45,651.63,0.58196529]
[1747789768098,0.832,652.45,651.64,1.36546825]
[1747789768295,0.832,652.45,651.65,0.58196529]
[1747789768496,0.832,652.45,651.64,1.09035464]
[1747789768497,0.832,652.45,651.66,1.36564894]
[1747789768701,0.832,652.45,651.67,0.58214598]
[1747789768899,0.832,652.45,651.68,0.58214598]
[1747789769100,0.832,652.45,651.69,1.36564894]
[1747789769400,0.832,652.45,651.7,0.58214598]
[1747789769603,0.832,652.45,651.71,0.58214598]
[1747789769795,0.832,652.45,651.72,0.58214598]
[1747789770000,0.832,652.45,651.73,0.58214598]
[1747789770201,0.832,652.45,651.74,0.58214598]
[1747789770401,0.832,652.45,651.69,0.30685168]
[1747789770597,0.832,652.45,651.7,0.58226174]
[1747789770801,0.832,652.45,651.71,0.58226174]
[1747789771002,0.832,652.45,651.72,0.58226174]
[1747789771204,0.832,652.45,651.45,0.25894432]
[1747789771498,0.832,652.45,651.46,0.58239549]
[1747789771702,0.832,652.45,651.47,1.36650035]
[1747789771897,0.832,652.45,651.48,0.58239549]
[1747789772097,0.832,652.45,651.49,1.36650035]
[1747789772301,0.832,652.45,651.5,0.58239549]
[1747789772603,0.832,652.45,651.51,0.58239549]
[1747789772804,2.29594406,652.44,651.52,1.36650035]
[1747789773008,2.29594406,652.44,651.53,1.36650035]
[1747789773302,2.29594406,652.44,651.54,1.36650035]
[1747789773505,2.29594406,652.44,651.55,0.58239549]
[1747789773701,2.29594406,652.44,651.56,1.36663089]
[1747789774002,2.29594406,652.44,651.57,1.36663089]
[1747789774205,2.29594406,652.44,651.58,0.58252603]
[1747789774504,2.29594406,652.44,651.59,0.58252603]
[1747789774703,2.29594406,652.44,651.6,0.58252603]
[1747789774903,2.29594406,652.44,651.59,0.78410486]
[1747789774904,2.29594406,652.44,651.61,0.58252603]
[1747789775100,2.29594406,652.44,651.62,1.36663089]
[1747789775299,2.29594406,652.44,651.63,0.58252603]
[1747789775500,2.29594406,652.44,651.64,0.58252603]
[1747789775704,2.29594406,652.44,651.65,0.58252603]
[1747789775897,2.29594406,652.44,651.66,0.58252603]
[1747789776101,2.29594406,652.44,651.67,0.58252603]
[1747789776305,2.29594406,652.41,651.68,0.58252603]
[1747789776501,2.29594406,652.41,651.69,0.58252603]
[1747789776704,2.29594406,652.41,651.7,1.36663089]
[1747789776904,2.29594406,652.41,651.71,0.58252603]
[1747789777104,2.29594406,652.41,651.72,0.58252603]
[1747789777304,2.29594406,652.41,651.73,0.58264594]
[1747789777503,2.29594406,652.41,651.74,0.58264594]
[1747789777702,2.29594406,652.41,651.75,0.58264594]
[1747789777906,2.29594406,652.41,651.76,1.36748463]
[1747789778206,2.29594406,652.41,651.77,0.58264594]
[1747789778407,2.29594406,652.41,651.78,1.36748463]
[1747789778601,2.29594406,652.41,651.79,0.58264594]
[1747789778804,0.832,652.45,651.8,0.58264594]
[1747789779104,0.832,652.45,651.81,1.36748463]
[1747789779303,0.832,652.45,651.82,0.58264594]
[1747789779504,0.832,652.45,651.83,1.36748463]
[1747789779700,0.832,652.45,651.84,1.36748463]
[1747789779907,0.832,652.45,651.85,0.88945384]
[1747789780206,0.832,652.45,651.86,0.58264594]
[1747789780407,0.832,652.45,651.87,0.58264594]
[1747789780705,0.832,652.45,651.88,1.36748463]
[1747789780907,0.832,652.45,651.89,0.58264594]
[1747789781105,0.832,652.45,651.9,1.36748463]
[1747789781302,0.832,652.45,651.91,0.58264594]
[1747789781505,0.832,652.45,651.92,0.58264594]
[1747789781805,0.832,652.45,651.93,0.58264594]
[1747789782005,0.832,652.45,651.94,0.58264594]
[1747789782304,0.832,652.45,651.59,0.25894432]
[1747789782501,0.832,652.45,651.6,0.58155011]
[1747789782700,0.832,652.45,651.61,0.58155011]
[1747789782901,0.832,652.45,651.62,1.36368115]
[1747789783105,0.832,652.45,651.63,0.58155011]
[1747789783403,0.832,652.45,651.64,0.58155011]
[1747789783601,0.832,652.45,651.59,0.25894432]
[1747789783602,0.832,652.45,651.65,1.67045082]
[1747789783804,0.832,652.45,651.66,0.58155011]
[1747789784002,0.832,652.45,651.67,0.58155011]
[1747789784207,0.832,652.45,651.68,0.58160473]
[1747789784403,0.832,652.45,651.69,0.58160473]
[1747789784609,0.832,652.45,651.7,1.36373577]
[1747789784807,0.832,652.45,651.71,0.58160473]
[1747789785001,0.832,652.45,651.72,1.36373577]
[1747789785204,0.832,652.45,651.73,0.58160473]
[1747789785405,0.832,652.45,651.74,0.58160473]
[1747789785601,0.832,652.45,651.75,1.36373577]
[1747789785806,0.832,652.45,651.76,0.58160473]
[1747789786003,0.832,652.45,651.77,0.58160473]
[1747789786202,0.832,652.45,651.78,0.58160473]
[1747789786407,0.832,652.45,651.79,0.58160473]
[1747789786605,0.832,652.45,651.79,0.30676967]
[1747789788303,0.832,652.45,651.58,1.176]
[1747789788508,0.832,652.45,651.59,0.58167898]
[1747789788710,0.832,652.45,651.6,0.58167898]
[1747789788909,0.832,652.45,651.61,0.58167898]
[1747789789103,0.832,652.45,651.62,0.58167898]
[1747789789304,0.832,652.45,651.63,1.36434522]
[1747789789615,0.832,652.45,651.64,1.6711609]
[1747789789813,0.832,652.45,651.65,0.58167898]
[1747789790014,0.832,652.45,651.66,1.36434522]
[1747789790314,0.832,652.45,651.67,0.58167898]
[1747789790615,0.832,652.45,651.68,1.6711609]
[1747789790807,0.832,652.45,651.69,1.36434522]
[1747789791011,0.832,652.45,651.7,0.58167898]
[1747789791209,0.832,652.45,651.71,1.36434522]
[1747789791509,0.832,652.45,651.72,0.58167898]
[1747789791712,0.832,652.45,651.73,0.58167898]
[1747789792013,0.832,652.45,651.74,0.88849466]
[1747789792214,0.832,652.45,651.75,0.58167898]
[1747789792414,0.832,652.45,651.76,0.58167898]
[1747789792713,0.832,652.45,651.77,0.58167898]
[1747789792915,0.832,652.45,651.78,0.58165539]
[1747789793108,0.832,652.45,651.74,0.30681568]
[1747789793313,0.832,652.45,651.75,0.58166607]
[1747789793614,0.832,652.45,651.76,0.58166607]
[1747789793815,0.832,652.45,651.77,0.58166607]
[1747789794009,0.832,652.45,651.58,1.176]
[1747789794211,0.832,652.45,651.59,1.36254394]
[1747789794512,0.832,652.45,651.6,1.66935823]
[1747789794712,0.832,652.45,651.61,0.5816826]
[1747789794914,0.832,652.45,651.62,0.5816826]
[1747789795213,0.832,652.45,651.63,1.36254394]
[1747789795513,0.832,652.45,651.64,0.5816826]
[1747789795710,0.832,652.45,651.65,1.36254394]
[1747789795910,0.832,652.45,651.66,1.36254394]
[1747789796111,0.832,652.45,651.67,0.5816826]
[1747789796309,0.832,652.45,651.68,0.5816826]
[1747789796510,0.832,652.45,651.69,0.5816826]
[1747789796709,0.832,652.45,651.7,1.36254394]
[1747789796913,0.832,652.45,651.71,0.5816826]
[1747789797210,0.832,652.45,651.72,1.36254394]
[1747789797411,0.832,652.45,651.73,0.5816826]
[1747789797611,0.832,652.45,651.74,0.88849689]
[1747789797810,0.832,652.45,651.75,0.5816826]
[1747789798013,0.832,652.45,651.76,0.5816826]
[1747789798212,0.832,652.45,651.77,0.5816826]
[1747789798516,0.832,652.45,651.78,0.5816826]
[1747789798715,0.832,652.45,651.79,0.5816826]
[1747789798912,0.832,652.45,651.8,0.5816826]
[1747789799216,0.832,652.45,651.81,0.5816826]
[1747789799417,0.832,652.45,651.82,0.5816826]
[1747789799611,0.832,652.45,651.83,0.5816826]
[1747789799813,0.832,652.45,651.81,0.30681429]
[1747789800018,0.832,652.45,651.82,0.58182255]
[1747789800218,0.832,652.45,651.83,0.58182255]
[1747789800414,0.832,652.45,651.81,0.30681429]
[1747789800613,0.832,652.45,651.82,0.58182064]
[1747789800814,0.832,652.45,651.83,0.58182064]
[1747789801015,0.832,652.45,651.84,0.30681429]
[1747789801518,0.832,652.45,651.85,0.58177925]
[1747789801817,0.832,652.45,651.86,0.58176288]
[1747789802018,0.832,652.45,651.87,0.58176288]
[1747789802211,0.832,652.45,651.88,0.58176288]
[1747789802414,0.832,652.45,651.89,0.58176288]
[1747789802615,3.82657343,653.18,651.9,0.58148856]
[1747789802816,3.82657343,653.18,651.87,0.30681429]
[1747789802817,3.82657343,653.18,651.91,0.58148856]
[1747789803018,0.26672492,653.17,651.92,0.58148856]
[1747789803218,0.26672492,653.17,651.93,0.58148856]
[1747789803416,0.26672492,653.17,651.94,0.88830285]
[1747789803617,0.26672492,653.17,651.94,0.30681429]
[1747789804222,0.26672492,653.17,651.95,0.5816049]
[1747789804415,0.26672492,653.17,651.96,0.5816049]
[1747789804611,0.26672492,653.17,651.69,0.25894432]
[1747789804817,0.26672492,653.17,651.7,0.58160665]
[1747789805114,0.26672492,653.17,651.71,1.36219966]
[1747789805312,0.26672492,653.17,651.72,0.58160665]
[1747789805517,0.26672492,653.17,651.73,1.36219966]
[1747789805820,0.26672492,653.17,651.74,0.88836231]
[1747789806020,1.204,653.16,651.75,0.58160665]
[1747789806319,1.204,653.16,651.76,1.36219966]
[1747789806513,1.204,653.16,651.77,0.58160665]
[1747789806716,1.204,653.16,651.78,0.58160665]
[1747789807019,1.204,653.16,651.79,1.36219966]
[1747789807221,1.204,653.16,651.8,0.58160665]
[1747789807414,1.204,653.16,651.81,0.58160665]
[1747789807620,1.204,653.16,651.82,0.58160665]
[1747789807818,1.204,653.16,651.83,1.36219966]
[1747789808019,1.204,653.16,651.84,0.58160665]
[1747789808320,1.204,653.16,651.85,0.58160665]
[1747789808520,1.204,653.16,651.86,0.58160665]
[1747789808718,1.204,653.16,651.87,0.58160665]
[1747789808920,1.204,653.16,651.88,0.58160665]
[1747789809117,1.204,653.16,651.89,0.58160665]
[1747789809318,1.204,653.16,651.85,0.30675566]
[1747789809519,0.26675456,653.15,651.86,0.58181838]
[1747789809815,0.26675456,653.15,651.87,0.58181838]
[1747789810015,0.26675456,653.15,651.88,0.58181838]
[1747789810222,0.26675456,653.15,651.7,1.405]
[1747789810422,0.26675456,653.15,651.71,0.58188062]
[1747789810624,0.26675456,653.15,651.72,1.36299021]
[1747789810824,0.26675456,653.15,651.73,1.36299021]
[1747789811025,0.26675456,653.15,651.74,0.58188062]
[1747789811220,0.26675456,653.15,651.75,1.36299021]
[1747789811422,0.26675456,653.15,651.76,0.58188062]
[1747789811619,0.26675456,653.15,651.77,0.58188062]
[1747789811922,0.26675456,653.15,651.78,0.88866612]
[1747789812219,0.26675456,653.15,651.79,0.58188062]
[1747789812417,0.26675456,653.15,651.8,1.36299021]
[1747789812623,0.26675456,653.15,651.81,1.36299021]
[1747789812818,0.26675456,653.15,651.82,0.58188062]
[1747789813020,0.26675456,653.15,651.83,0.58188062]
[1747789813224,0.26675456,653.15,651.78,0.3067855]
[1747789813525,0.26675456,653.15,651.83,0.3067855]
[1747789814428,1.204,653.16,651.83,0.3067855]
[1747789814822,0.26677194,653.14,651.83,0.3067855]
[1747789815126,0.26677194,653.14,651.84,0.3067855]
[1747789817128,3.82657343,652.97,651.71,0.3067855]
[1747789817328,3.82657343,652.97,651.72,0.58161546]
[1747789817627,3.82657343,652.97,651.71,0.3067855]
[1747789817628,3.82657343,652.97,651.73,0.58161546]
[1747789817827,3.82657343,652.97,651.74,0.58161546]
[1747789818127,3.82657343,652.97,651.75,0.58161546]
[1747789818322,3.82657343,652.97,651.76,0.58161546]
[1747789818521,3.82657343,652.97,651.71,0.3067855]
[1747789818725,3.82657343,652.97,651.72,0.58160042]
[1747789818924,0.26678524,652.96,651.73,0.58160042]
[1747789819123,0.26678524,652.96,651.74,0.58160042]
[1747789819325,0.26678524,652.96,651.75,0.58160042]
[1747789819521,0.26678524,652.96,651.76,0.58160042]
[1747789819724,0.26678524,652.96,651.7,1.405]
[1747789819926,0.26678524,652.96,651.71,0.58164152]
[1747789820126,0.26678524,652.96,651.72,0.58164152]
[1747789820330,0.26678524,652.96,651.73,0.58164152]
[1747789820525,3.82657343,652.97,651.74,0.58164152]
[1747789820732,3.82657343,652.97,651.75,0.58164152]
[1747789820930,3.82657343,652.97,651.76,0.58164152]
[1747789821230,1.228,652.96,651.7,1.405]
[1747789821430,1.228,652.96,651.71,0.581663]
[1747789821628,1.228,652.96,651.7,1.405]
[1747789821629,1.228,652.96,651.72,0.581663]
[1747789821827,0.2667924,652.95,651.73,0.581663]
[1747789822030,0.2667924,652.95,651.74,0.581663]
[1747789822233,0.2667924,652.95,651.75,0.581663]
[1747789822429,0.2667924,652.95,651.7,1.405]
[1747789822626,0.2667924,652.95,651.71,0.58169782]
[1747789822832,0.2667924,652.95,651.72,0.58169782]
[1747789823033,0.2667924,652.95,651.73,0.58169782]
[1747789823226,0.2667924,652.95,651.7,1.405]
[1747789823427,0.2667924,652.95,651.71,0.5816994]
[1747789823628,0.2667924,652.95,651.72,0.5816994]
[1747789823828,0.2667924,652.95,651.73,0.5816994]
[1747789824029,0.2667924,652.95,651.74,0.5816994]
[1747789824229,0.2667924,652.95,651.75,0.5816994]
[1747789824433,0.2667924,652.95,651.76,0.5816994]
[1747789824633,0.2667924,652.95,651.77,0.5816994]
[1747789824834,0.2667924,652.95,651.78,0.5816994]
[1747789825132,0.2667924,652.95,651.72,0.30678884]
[1747789825332,0.2667924,652.95,651.73,0.58179139]
[1747789825535,0.2667924,652.95,651.74,0.58179139]
[1747789825831,0.2667924,652.95,651.75,0.58179139]
[1747789826033,0.2667924,652.95,651.76,0.58179139]
[1747789826229,0.2667924,652.95,651.77,0.58179139]
[1747789826434,1.228,652.96,651.78,0.58179139]
[1747789826730,1.228,652.96,651.79,0.58179139]
[1747789826929,1.228,652.96,651.7,1.405]
[1747789827133,1.228,652.96,651.71,0.58188485]
[1747789827435,1.228,652.96,651.72,1.36662238]
[1747789827634,1.228,652.96,651.73,1.36662238]
[1747789827835,0.26679342,652.95,651.74,0.58188485]
[1747789828136,0.26679342,652.95,651.7,1.405]
[1747789828137,0.26679342,652.95,651.75,0.58188485]
[1747789828337,0.26679342,652.95,651.76,0.58188485]
[1747789828538,0.26679342,652.95,651.77,0.58188485]
[1747789828737,0.26679342,652.95,651.78,0.58188485]
[1747789828937,0.26679342,652.95,651.79,0.58188485]
[1747789829137,0.26679342,652.95,651.43,0.25894432]
[1747789829330,0.26679342,652.95,651.44,0.5818949]
[1747789829535,1.228,652.96,651.45,0.5818949]
[1747789829732,1.228,652.96,651.46,1.36670374]
[1747789830032,1.228,652.96,651.47,0.5818949]
[1747789830236,1.228,652.96,651.48,0.58192825]
[1747789830537,1.228,652.96,651.49,1.36673709]
[1747789830836,0.26681694,652.95,651.5,0.58192825]
[1747789831037,0.26681694,652.95,651.51,1.36673709]
[1747789831237,0.26681694,652.95,651.52,0.58192825]
[1747789831439,0.26681694,652.95,651.53,0.58192825]
[1747789831636,0.26681694,652.95,651.54,1.36673709]
[1747789831834,0.26681694,652.95,651.55,0.58192825]
[1747789832035,0.26681694,652.95,651.56,0.58199843]
[1747789832337,0.26681694,652.95,651.57,1.36680727]
[1747789832535,1.228,652.96,651.58,0.58199843]
[1747789832731,1.228,652.96,651.59,1.36680727]
[1747789832931,1.228,652.96,651.6,1.36680727]
[1747789833133,1.228,652.96,651.61,0.58199843]
[1747789833334,1.228,652.96,651.62,0.58199843]
[1747789833541,1.228,652.96,651.63,0.58199843]
[1747789833735,1.228,652.96,651.64,0.58230342]
[1747789833736,0.26680262,652.95,651.64,0.58230342]
[1747789833938,0.26680262,652.95,651.65,0.58230342]
[1747789834138,0.26680262,652.95,651.66,0.58230342]
[1747789834342,0.26680262,652.95,651.67,0.58230342]
[1747789834537,3.82657343,652.88,651.68,0.58230342]
[1747789834737,3.82657343,652.88,651.69,0.58230342]
[1747789834937,3.82657343,652.88,651.7,1.36711226]
[1747789835138,3.82657343,652.88,651.71,0.58230342]
[1747789835344,3.82657343,652.88,651.72,0.58230342]
[1747789835549,3.82657343,652.88,651.73,1.3672863]
[1747789835738,3.82657343,652.88,651.74,0.58247746]
[1747789835938,3.82657343,652.88,651.75,1.3672863]
[1747789836143,3.82657343,652.88,651.76,0.58247746]
[1747789836339,3.82657343,652.88,651.75,0.78480884]
[1747789836340,3.82657343,652.88,651.77,0.58247746]
[1747789836545,3.82657343,652.88,651.78,0.58247746]
[1747789836743,0.26679546,652.87,651.79,0.58247746]
[1747789836944,0.26679546,652.87,651.8,0.58247746]
[1747789837145,0.26679546,652.87,651.81,0.58247746]
[1747789837345,0.26679546,652.87,651.82,0.58247746]
[1747789837547,0.26679546,652.87,651.82,0.30678591]
[1747789838448,3.82657343,652.88,651.82,0.30678591]
[1747789838748,3.82657343,652.88,651.83,0.30678591]
[1747789839749,0.26681285,652.87,651.83,0.30678591]
[1747789840650,0.26681285,652.87,651.84,0.30678591]
[1747789841849,0.26681285,652.87,651.85,0.30678591]
[1747789843453,0.26681285,652.87,651.86,0.5827688]
[1747789843653,0.26681285,652.87,651.87,0.5827688]
[1747789843854,0.26681285,652.87,651.88,0.5827688]
[1747789844055,0.26681285,652.87,651.86,0.30678591]
[1747789844249,0.26681285,652.87,651.87,0.58278274]
[1747789844453,0.26681285,652.87,651.88,0.58278274]
[1747789844653,3.82657343,652.88,651.89,0.58278274]
[1747789844856,3.82657343,652.88,651.63,0.25894432]
[1747789845058,3.82657343,652.88,651.64,1.36848382]
[1747789845255,1.109,652.87,651.65,0.58275597]
[1747789845454,1.109,652.87,651.66,1.36848382]
[1747789845656,1.37580876,652.87,651.67,1.36848382]
[1747789845857,1.37580876,652.87,651.67,0.78572785]
[1747789846156,1.37580876,652.87,651.68,1.36848171]
[1747789846356,1.37580876,652.87,651.69,1.36848171]
[1747789846556,1.37580876,652.87,651.7,1.36848171]
[1747789846756,1.37580876,652.87,651.71,0.58275386]
[1747789847056,1.37580876,652.87,651.72,1.36848171]
[1747789847257,1.37580876,652.87,651.73,0.58275386]
[1747789847457,1.109,652.87,651.74,0.58275386]
[1747789847756,1.109,652.87,651.75,1.3685454]
[1747789847955,1.109,652.87,651.76,0.58281755]
[1747789848157,1.109,652.87,651.77,0.58281755]
[1747789848357,1.109,652.87,651.78,0.58280676]
[1747789848559,1.109,652.87,651.79,0.58280676]
[1747789848856,0.26679649,652.86,651.8,0.58280676]
[1747789849162,3.82657343,652.81,651.81,1.36853461]
[1747789849452,3.82657343,652.81,651.82,1.36853461]
[1747789849660,3.82657343,652.81,651.83,0.58280676]
[1747789849852,3.82657343,652.81,651.84,1.36853461]
[1747789850055,3.82657343,652.81,651.85,0.58280676]
[1747789850253,3.82657343,652.81,651.86,1.36853461]
[1747789850457,3.82657343,652.81,651.87,0.58280676]
[1747789850658,3.82657343,652.81,651.88,0.88959473]
[1747789850858,3.82657343,652.81,651.89,1.36853461]
[1747789851060,3.82657343,652.81,651.9,0.58280676]
[1747789851256,3.82657343,652.81,651.89,0.78572785]
[1747789851257,3.82657343,652.81,651.91,0.58253615]
[1747789851456,3.82657343,652.81,651.92,1.368264]
[1747789851659,3.82657343,652.81,651.93,0.58253615]
[1747789851954,1.109,652.87,651.94,0.88932412]
[1747789852160,1.109,652.87,651.95,0.58253615]
[1747789852360,1.109,652.87,651.96,0.58253615]
[1747789852562,1.109,652.87,651.97,0.58253615]
[1747789852762,1.109,652.87,651.94,0.30678797]
[1747789852961,1.109,652.87,651.95,0.58254464]
[1747789853160,1.109,652.87,651.96,0.58254464]
[1747789853364,1.109,652.87,651.97,0.58254464]
[1747789853562,1.109,652.87,651.98,0.58254762]
[1747789853763,1.109,652.87,651.94,0.30678797]
[1747789853970,1.109,652.87,651.95,0.58254762]
[1747789854262,1.109,652.87,651.96,0.88933559]
[1747789854462,1.109,652.87,651.97,0.58254762]
[1747789854662,1.109,652.87,651.98,0.58254762]
[1747789854856,1.109,652.87,651.96,0.30678797]
[1747789855057,1.109,652.87,651.97,0.58235253]
[1747789855268,1.109,652.87,651.98,0.58235253]
[1747789855562,1.109,652.87,651.97,0.30678797]
[1747789855758,1.109,652.87,651.98,0.58227741]
[1747789855961,1.109,652.87,651.97,0.30678797]
[1747789856158,1.109,652.87,651.98,0.58227494]
[1747789856362,1.109,652.87,651.97,0.30678797]
[1747789856663,1.109,652.87,651.98,0.88908266]
[1747789856959,1.109,652.87,651.98,0.30678797]
[1747789857465,1.109,652.87,651.99,0.58225976]
[1747789857663,1.109,652.87,652.0,0.582274]
[1747789857863,1.109,652.87,652.01,0.58225066]
[1747789858064,1.109,652.87,651.99,0.30678797]
[1747789858265,0.26675354,652.92,652.0,0.58224646]
[1747789858466,0.26675354,652.92,652.01,0.58224646]
[1747789858670,0.26675354,652.92,651.99,0.30678797]
[1747789858868,0.26675354,652.92,652.0,0.58220226]
[1747789859061,0.26675354,652.92,652.01,0.58220226]
[1747789859264,0.26675354,652.92,652.01,0.30678797]
[1747789859671,5.3572028,653.25,652.02,0.5820266]
[1747789859868,5.3572028,653.25,652.03,0.58199017]
[1747789860168,5.3572028,653.25,652.04,0.58199017]
[1747789860371,0.26668608,653.24,652.05,0.58199017]
[1747789860564,0.26668608,653.24,652.06,0.58199017]
[1747789860865,0.26668608,653.24,652.07,0.58199017]
[1747789861068,0.26668608,653.24,652.08,0.58199017]
[1747789861269,0.26668608,653.24,652.09,0.58199017]
[1747789861470,0.26668608,653.24,652.1,0.58199017]
[1747789861664,0.26668608,653.24,652.01,0.30678797]
[1747789861865,0.26668608,653.24,652.02,0.58195216]
[1747789862070,1.07,653.23,652.09,0.30678797]
[1747789863071,1.07,653.23,652.1,0.836]
[1747789863374,0.26671265,653.22,652.1,0.836]
[1747789868571,1.07,653.23,652.1,0.836]
[1747789869276,0.26669323,653.22,652.1,0.836]
[1747789871477,1.07,653.23,652.1,0.836]
[1747789872278,0.26669323,653.22,652.1,0.836]
[1747789874479,1.07,653.23,652.1,0.836]
[1747789875380,0.26669323,653.22,652.1,0.836]
[1747789877987,3.82657343,653.1,652.1,0.836]
[1747789880784,0.26670652,653.09,652.1,0.836]
[1747789886491,3.82657343,653.1,652.1,0.836]
[1747789886792,1.19,653.09,652.1,0.836]
[1747789887389,0.26668915,653.08,652.1,0.836]
[1747789889492,1.19,653.09,652.1,0.836]
[1747789890292,1.19,653.09,651.22,0.51852587]
[1747789890293,0.26669937,653.08,651.6,0.25894432]
[1747789890492,0.26669937,653.08,651.63,0.26669937]
[1747789890693,0.26669937,653.08,651.64,0.58087781]
[1747789890893,0.26669937,653.08,651.65,1.36504386]
[1747789891092,0.26669937,653.08,651.66,0.58087781]
[1747789891293,0.26669937,653.08,651.67,0.58087781]
[1747789891494,0.26669937,653.08,651.68,0.58087781]
[1747789891797,0.26669937,653.08,651.69,1.67174298]
[1747789891994,0.26669937,653.08,651.7,0.58087781]
[1747789892189,0.26669937,653.08,651.71,0.58073047]
[1747789892387,0.26669937,653.08,651.69,1.09086517]
[1747789892388,0.26669937,653.08,651.72,1.36489652]
[1747789892693,1.19,653.09,651.73,0.58073047]
[1747789892993,1.19,653.09,651.74,1.36489652]
[1747789893194,1.19,653.09,651.75,0.58073047]
[1747789893397,0.26673514,653.08,651.76,1.36489652]
[1747789893695,0.26673514,653.08,651.77,1.36489652]
[1747789893896,0.26673514,653.08,651.78,0.58073047]
[1747789894090,0.26673514,653.08,651.79,0.58073047]
[1747789894295,0.26673514,653.08,651.77,1.61316605]
[1747789894296,0.26673514,653.08,651.8,1.36489652]
[1747789894595,0.26673514,653.08,651.81,1.36489652]
[1747789894795,0.26673514,653.08,651.82,1.36489652]
[1747789894989,0.26673514,653.08,651.83,0.58073047]
[1747789895190,0.26673514,653.08,651.84,0.58073047]
[1747789895389,0.26673514,653.08,651.85,1.36489652]
[1747789895595,1.19,653.09,651.86,0.58073047]
[1747789895890,1.19,653.09,651.87,1.36489652]
[1747789896094,1.19,653.09,651.88,0.58073047]
[1747789896293,1.19,653.09,651.89,0.58073047]
[1747789896494,0.26672083,653.08,651.9,1.36489652]
[1747789896791,0.26672083,653.08,651.91,1.36489652]
[1747789896997,0.26672083,653.08,651.92,0.58073047]
[1747789897296,0.26672083,653.08,651.93,0.58073047]
[1747789897596,0.26672083,653.08,651.94,0.58083718]
[1747789897896,0.26672083,653.08,651.95,0.58083718]
[1747789898089,0.26672083,653.08,651.96,0.58083718]
[1747789898294,0.26672083,653.08,651.97,0.58083718]
[1747789898494,3.82657343,653.29,651.98,0.58083718]
[1747789898693,3.82657343,653.29,651.96,0.30669912]
[1747789898896,3.82657343,653.29,651.97,0.58093104]
[1747789899095,3.82657343,653.29,651.96,0.30669912]
[1747789899292,0.26671061,653.28,651.97,0.58093104]
[1747789899592,0.26671061,653.28,651.98,0.58093104]
[1747789899891,0.26671061,653.28,651.96,0.30669912]
[1747789900096,0.26671061,653.28,651.97,0.58098236]
[1747789900297,0.26671061,653.28,651.98,0.58098236]
[1747789900494,0.825,653.27,651.77,0.829]
[1747789900696,0.825,653.27,651.78,0.88772343]
[1747789900997,0.825,653.27,651.79,1.36466636]
[1747789901199,0.825,653.27,651.8,0.58102149]
[1747789901393,0.825,653.27,651.81,1.36466636]
[1747789901593,0.825,653.27,651.82,0.88772343]